Workbook

Sheet Introduction
B3: KSU-Truck Cost
B5: An Excel spreadsheet to estimate the cost of owning and operating a truck.
L8: Version- 6.30.16
B28: INSTRUCTIONS FOR THE USER:
B29: Be sure to "Enable Content" and "Enable Macros" for the spreadsheet to function correctly. This spreadsheet uses macros to print the three different pages, however printing can also be done manually by highlighting the desired range and using the menu print commands.
B31: In the "User input" tab all blue numbers are inputs and all black numbers are calculated from these inputs. Several input cells (i.e., blue number) have a red diamond in the upper right hand corner of the cell. By moving your mouse cursor over this diamond, a brief description of the input will be displayed on the screen.
B35: FOR MORE INFORMATION:
B36: With Questions contact: | G36: Originally Developed by:
B38: Rich Llewelyn | G38: Kevin C. Dhuyvetter, Ph.D.
B39: Extension Assistant | G39: Former Agricultural Economist
B40: Kansas State University | G40: Kansas State University
B41: rvl@ksu.edu
B42: 785-532-1504
B45: Copyright 2016 AgManager.info, K-State Department of Agricultural Economics

Sheet Truck costs
B2: ESTIMATED TRUCK COSTS (blue values are inputs and black values are calculated) | J2: Input comment
B4: Truck and trailer investment
B5: Average value of truck, $ | D5: 17500 | J5: Average value of semi
B6: annual depreciation, % | D6: 0.035 | J6: ____________________________________
B7: Average value of trailer, $ | D7: 15000 | J7: Average value of semi grain trailer
B8: annual depreciation, % | D8: 0.035 | J8: ____________________________________
B9: Interest rate | D9: 0.05 | J9: ____________________________________
B11: Truck hauling information
B12: Miles driven annually | D12: 12000 | J12: ____________________________________
B13: Units (bushels, tons, etc) per load | C13: bushel | D13: 950 | J13: ____________________________________
B14: Percent of miles hauling (as opposed to empty) | D14: 0.5 | J14: ____________________________________
B15: Loaded miles driven annually | D15: =D12*D14 -> 6000 | J15: calculated value
B16: Length of average trip, one-way miles | D16: 20 | J16: ____________________________________
B17: Number of trips/loads per year | D17: =D15/D16 -> 300 | J17: calculated value
B18: Average driving speed, mph | D18: 40 | J18: ____________________________________
B19: Diesel price, $/gallon | D19: 2.25 | J19: ____________________________________
B20: Average miles per gallon | D20: 4 | J20: ____________________________________
B21: Wage rate, $/hr | D21: 15 | J21: ____________________________________
B22: Labor hrs/hr of driving time | D22: 2 | J22: ____________________________________
H24: Include in
D25: Annual | E25: Per load | F25: Per mile | G25: ="Per "&C13 -> Per bushel | H25: total? (Y=1) | J25: Input comment
B26: Annual fixed costs (ownership)
B27: truck depreciation | D27: =D5*D6 -> 612.5 | E27: =D27/D$17 -> 2.041666667 | F27: =D27/D$12 -> 0.05104166667 | G27: =D27/(D$13*D$17) -> 0.002149122807 | H27: 1 | J27: calculated value
B28: truck interest | D28: =D5*D9 -> 875 | E28: 2.916666667 | F28: 0.07291666667 | G28: 0.003070175439 | H28: 1 | J28: calculated value
B29: truck insurance | D29: 300 | E29: 1 | F29: 0.025 | G29: 0.001052631579 | H29: 1 | J29: ____________________________________
B30: truck tag | D30: 375 | E30: 1.25 | F30: 0.03125 | G30: 0.001315789474 | H30: 1 | J30: ____________________________________
B31: trailer depreciation | D31: =D7*D8 -> 525 | E31: 1.75 | F31: 0.04375 | G31: 0.001842105263 | H31: 1 | J31: calculated value
B32: trailer interest | D32: =D7*D9 -> 750 | E32: 2.5 | F32: 0.0625 | G32: 0.002631578947 | H32: 1 | J32: calculated value
B33: trailer insurance | D33: 100 | E33: 0.3333333333 | F33: 0.008333333333 | G33: 0.000350877193 | H33: 1 | J33: ____________________________________
B34: trailer tag | D34: 50 | E34: 0.1666666667 | F34: 0.004166666667 | G34: 0.0001754385965 | H34: 1 | J34: ____________________________________
B35: property taxes | D35: 350 | E35: 1.166666667 | F35: 0.02916666667 | G35: 0.001228070175 | H35: 1 | J35: ____________________________________
D36: =SUM(D27:D35) -> 3937.5 | E36: =SUM(E27:E35) -> 13.125 | F36: =SUM(F27:F35) -> 0.328125 | G36: =SUM(G27:G35) -> 0.01381578947 | H36: xxx
B37: Mileage costs (operating)
B38: truck tires | D38: =F38*D$12 -> 864 | E38: =D38/D$17 -> 2.88 | F38: =400*18/100000 -> 0.072 | G38: =D38/(D$13*D$17) -> 0.003031578947 | H38: 1 | J38: $400/tire replace every 100,000 miles (18 tires)
B39: service costs (lubrication, oil, etc.) | D39: =F39*D$12 -> 420 | E39: =D39/D$17 -> 1.4 | F39: =350/10000 -> 0.035 | G39: =D39/(D$13*D$17) -> 0.001473684211 | H39: 1 | J39: $350 every 10,000 miles
B40: repairs and maintenance | D40: =F40*D$12 -> 1200 | E40: =D40/D$17 -> 4 | F40: =1000/10000 -> 0.1 | G40: =D40/(D$13*D$17) -> 0.004210526316 | H40: 1 | J40: $1000 every 10,000 miles
B41: fuel | D41: =D12/D20*D19 -> 6750 | E41: =D41/D$17 -> 22.5 | F41: =D41/D12 -> 0.5625 | G41: =D41/(D13*D17) -> 0.02368421053 | H41: 1 | J41: calculated value
B42: labor | D42: =D12/D18*D22*D21 -> 9000 | E42: =D42/D17 -> 30 | F42: =D42/D12 -> 0.75 | G42: =D42/(D13*D17) -> 0.03157894737 | H42: 1 | J42: calculated value
D43: =SUM(D38:D42) -> 18234 | E43: =SUM(E35:E42) -> 75.07166667 | F43: =SUM(F38:F42) -> 1.5195 | G43: =SUM(G38:G42) -> 0.06397894737 | H43: xxx | J43: calculated value
B45: Total cost | D45: =SUMPRODUCT(D27:D43,$H27:$H43) -> 22171.5 | E45: =SUMPRODUCT(E27:E43,$H27:$H43) -> 73.905 | F45: =SUMPRODUCT(F27:F43,$H27:$H43) -> 1.847625 | G45: =SUMPRODUCT(G27:G43,$H27:$H43) -> 0.07779473684 | H45: xxx | J45: calculated value
B72: Year | F72: 2016
B73: Section 179 allowance | F73: 500000
B74: Bonus depreciation (cell L22 in User input) | F74: 0
B76: Market ding when trade | F76: 0
B77: NEP adjustment to approximate list price | F77: 1
